bitfinex-derivatives/quotes_SOLF0:USTF0_20260211
["timestamp","ask_amount","ask_price","bid_price","bid_amount"]
[1770819590905,10.01200325,82.72,82.639,10.82619508]
[1770819591103,10.01200325,82.7,82.641,10.8953]
[1770819591305,10.8877,82.7,82.64,4.65934604]
[1770819591710,10.8873,82.703,82.649,4.66725768]
[1770819591907,10.01200325,82.72,82.649,4.66725768]
[1770819592406,10.01200325,82.7,82.649,4.66725768]
[1770819592602,10.01200325,82.72,82.649,4.66725768]
[1770819592802,10.01200325,82.72,82.654,10.8936]
[1770819593003,10.8873,82.702,82.654,10.8936]
[1770819593406,10.8873,82.702,82.649,4.66725768]
[1770819593712,10.8883,82.695,82.649,4.66725768]
[1770819593913,10.8883,82.695,82.62,10.01200325]
[1770819593914,10.01200325,82.7,82.636,10.8959]
[1770819594611,10.8882,82.696,82.643,10.895]
[1770819594904,10.01200325,82.7,82.644,4.66008206]
[1770819595104,10.01200325,82.7,82.625,4.66008206]
[1770819595309,10.01200325,82.7,82.627,10.8971]
[1770819595510,10.01200325,82.7,82.628,4.65062197]
[1770819596712,10.8898,82.684,82.635,10.896]
[1770819596903,10.01200325,82.7,82.628,4.65062197]
[1770819597802,10.8906,82.678,82.629,4.65620929]
[1770819598808,10.8885,82.694,82.64,4.65620929]
[1770819599412,10.8892,82.688,82.644,10.8949]
[1770819599611,10.01200325,82.7,82.64,4.65620929]
[1770819599916,10.01200325,82.7,82.608,4.65487782]
[1770819600309,10.01200325,82.68,82.608,4.65487782]
[1770819600513,10.01200325,82.66,82.59,4.65487782]
[1770819600716,10.8954,82.641,82.59,4.65487782]
[1770819600902,10.01200325,82.64,82.59,4.65487782]
[1770819601107,10.01200325,82.66,82.59,4.65487782]
[1770819601310,10.8947,82.646,82.592,4.65487782]
[1770819601511,10.01200325,82.64,82.563,4.52753417]
[1770819601913,10.01200325,82.64,82.555,10.82619508]
[1770819601914,10.01200325,82.64,82.574,4.52753417]
[1770819602315,10.01200325,82.65,82.574,4.52753417]
[1770819602608,10.01200325,82.65,82.525,21.50053683]
[1770819602609,10.01200325,82.63,82.557,4.52753417]
[1770819603910,10.01200325,82.64,82.557,4.52753417]
[1770819604712,10.8975,82.625,82.561,4.54497134]
[1770819605504,10.8988,82.615,82.561,4.54497134]
[1770819605704,10.8988,82.615,82.521,164.06]
[1770819605705,10.01200325,82.6,82.541,4.54279501]
[1770819606111,10.9011,82.598,82.543,4.54279501]
[1770819606312,10.01200325,82.62,82.543,4.54279501]
[1770819606707,10.01200325,82.62,82.549,4.54279501]
[1770819607314,10.9017,82.594,82.535,4.54279501]
[1770819608221,21.7833,82.67,82.537,4.52465061]
[1770819608520,10.01200325,82.61,82.537,4.52465061]
[1770819609121,10.9029,82.584,82.537,4.52465061]
[1770819609308,10.01200325,82.61,82.537,4.52465061]
[1770819609508,10.8983,82.619,82.552,4.52465061]
[1770819609711,10.01200325,82.62,82.552,4.52465061]
[1770819610021,10.01200325,82.62,82.554,4.50692187]
[1770819610718,10.01200325,82.62,82.556,4.50692187]
[1770819611718,10.01200325,82.62,82.558,4.46948315]
[1770819612130,10.01200325,82.64,82.558,4.46948315]
[1770819612318,10.8982,82.62,82.558,4.46948315]
[1770819613116,10.8982,82.62,82.559,4.46948315]
[1770819614227,10.8996,82.609,82.559,4.46948315]
[1770819614427,10.01200325,82.64,82.559,4.46948315]
[1770819614921,10.05314902,82.64,82.559,4.46948315]
[1770819615526,10.05314902,82.64,82.524,163.18]
[1770819615527,10.8945,82.648,82.588,4.47145355]
[1770819615820,10.05314902,82.66,82.601,4.47299737]
[1770819616219,10.05314902,82.66,82.54,169.6905]
[1770819616220,10.05314902,82.66,82.561,4.47299737]
[1770819616822,10.05314902,82.67,82.595,4.47299737]
[1770819617215,10.8936,82.655,82.596,4.47299737]
[1770819617616,10.05314902,82.67,82.596,4.47299737]
[1770819618420,10.8919,82.667,82.608,10.8996]
[1770819618626,10.05314902,82.67,82.608,10.8996]
[1770819619824,10.8934,82.656,82.608,10.8996]
[1770819620222,10.05314902,82.67,82.608,10.8996]
[1770819621223,10.05314902,82.67,82.555,162.74]
[1770819621224,10.05314902,82.65,82.576,4.51545568]
[1770819621620,10.8968,82.631,82.583,10.903]
[1770819622022,10.05314902,82.63,82.541,4.51500408]
[1770819622726,10.8979,82.622,82.563,4.51500408]
[1770819623318,10.05314902,82.63,82.544,4.51500408]
[1770819623528,10.05314902,82.61,82.544,4.51500408]
[1770819623927,10.05314902,82.59,82.544,4.51500408]
[1770819624127,10.05314902,82.61,82.544,4.51500408]
[1770819624128,10.9011,82.598,82.544,4.51500408]
[1770819624320,10.05314902,82.61,82.544,4.51500408]
[1770819624525,10.05314902,82.59,82.501,4.5353764]
[1770819624826,10.05314902,82.61,82.501,4.5353764]
[1770819625434,10.05314902,82.61,82.526,4.5353764]
[1770819625732,10.05314902,82.59,82.526,4.5353764]
[1770819626721,10.9033,82.581,82.528,4.54533276]
[1770819626927,10.05314902,82.59,82.528,4.54533276]
[1770819627736,10.05314902,82.57,82.511,4.55273468]
[1770819628035,10.9053,82.566,82.513,4.55273468]
[1770819628332,10.05314902,82.57,82.513,4.55273468]
[1770819628530,180.56988764,82.664,82.471,465.28705314]
[1770819628531,10.05314902,82.68,82.559,4.55273468]
[1770819628736,10.05314902,82.63,82.559,4.55273468]
[1770819629228,10.897,82.629,82.568,4.55273468]
[1770819630434,10.05314902,82.62,82.551,4.54689186]
[1770819631230,10.9017,82.593,82.551,4.54689186]
[1770819631637,10.05314902,82.62,82.551,4.54689186]
[1770819631829,10.9018,82.592,82.511,4.66174767]
[1770819632133,10.05314902,82.62,82.511,4.66174767]
[1770819632834,10.05314902,82.6,82.535,4.66174767]
[1770819633833,10.901,82.598,82.537,10.909]
[1770819634033,10.901,82.598,82.538,4.65641497]
[1770819634838,10.901,82.598,82.547,10.9076]
[1770819635142,10.901,82.598,82.538,4.65641497]
[1770819635443,10.05314902,82.6,82.505,4.65641497]
[1770819636532,10.05314902,82.6,82.522,4.70643382]
[1770819637438,10.9016,82.594,82.537,4.70643382]
[1770819637640,21.7847,82.664,82.537,4.70643382]
[1770819637844,10.05314902,82.63,82.541,4.72758632]
[1770819638541,10.05314902,82.63,82.574,4.72758632]
[1770819639748,10.8979,82.622,82.574,4.72758632]
[1770819639939,10.05314902,82.63,82.574,4.72758632]
[1770819640142,10.05314902,82.63,82.551,4.7534177]
[1770819640745,10.8979,82.622,82.569,10.9048]
[1770819641048,10.05314902,82.64,82.57,4.7534177]
[1770819642143,10.8978,82.623,82.57,4.7534177]
[1770819642538,10.05314902,82.64,82.57,4.7534177]
[1770819643147,10.05314902,82.66,82.587,4.75230266]
[1770819644840,10.8946,82.647,82.596,10.9012]
[1770819645243,10.05314902,82.66,82.587,4.75230266]
[1770819646851,10.8951,82.643,82.596,10.9012]
[1770819647057,171.7,82.679,82.564,4.75717939]
[1770819647058,10.05314902,82.64,82.564,4.75717939]
[1770819647352,10.05314902,82.62,82.564,4.75717939]
[1770819647556,10.8998,82.608,82.564,4.75717939]
[1770819647748,10.05314902,82.62,82.564,4.75717939]
[1770819648053,10.05314902,82.62,82.547,4.75478687]
[1770819650356,10.9018,82.593,82.547,4.75478687]
[1770819650553,10.05314902,82.6,82.547,4.75478687]
[1770819650856,10.05314902,82.6,82.538,10.82619508]
[1770819651053,10.05314902,82.6,82.529,4.77414262]
[1770819651253,10.05314902,82.6,82.53,4.77414262]
[1770819651453,181.91314902,82.62,82.535,4.77414262]
[1770819651758,181.91314902,82.62,82.543,4.77430562]
[1770819652167,10.9012,82.597,82.549,10.9074]
[1770819652358,181.91314902,82.62,82.549,10.9074]
[1770819653254,10.902,82.591,82.543,4.77430562]
[1770819653561,10.902,82.591,82.515,21.50053683]
[1770819653562,10.05314902,82.6,82.534,4.76728205]
[1770819653757,10.05314902,82.6,82.535,4.76728205]
[1770819654356,10.05314902,82.6,82.533,10.82619508]
[1770819654561,10.05314902,82.58,82.524,10.82619508]
[1770819654762,10.05314902,82.58,82.523,10.82619508]
[1770819654956,10.9033,82.581,82.528,4.76728205]
[1770819655161,10.9033,82.581,82.529,4.76728205]
[1770819655758,10.9033,82.581,82.535,10.9093]
[1770819656064,10.9042,82.575,82.529,4.76728205]
[1770819656457,11.13278764,82.65,82.532,4.7690538]
[1770819656763,184.38288815,82.661,82.546,15.59524888]
[1770819656764,10.05314902,82.62,82.546,15.59524888]
[1770819656960,10.9011,82.598,82.547,4.7690538]
[1770819657353,171.72,82.649,82.547,4.7690538]
[1770819657354,10.05314902,82.6,82.547,4.7690538]
[1770819658659,10.05314902,82.6,82.532,10.82619508]
[1770819658860,10.05314902,82.6,82.529,4.76798583]
[1770819659072,10.05314902,82.6,82.533,4.76798583]
[1770819659766,10.9021,82.59,82.544,10.9081]
[1770819659955,10.9021,82.59,82.533,4.76798583]
[1770819659956,10.05314902,82.6,82.533,4.76798583]
[1770819660356,10.9054,82.565,82.523,10.9109]
[1770819660556,10.05314902,82.56,82.516,10.82619508]
[1770819660854,10.05314902,82.56,82.477,4.74570085]
[1770819660855,10.05314902,82.54,82.477,4.74570085]
[1770819661465,10.05314902,82.52,82.459,4.74570085]
[1770819661657,10.05314902,82.52,82.441,4.78663743]
[1770819661859,10.05314902,82.5,82.417,4.78663743]
[1770819662865,10.917,82.477,82.425,4.78663743]
[1770819663658,10.05314902,82.46,82.415,5.67576162]
[1770819664267,10.05314902,82.47,82.415,5.67576162]
[1770819664865,10.9182,82.468,82.415,5.67576162]
[1770819665565,10.9196,82.458,82.415,5.67576162]
[1770819665965,10.9208,82.449,82.415,5.67576162]
[1770819666166,10.05314902,82.47,82.415,5.67576162]
[1770819666366,10.05314902,82.47,82.415,10.63914054]
[1770819666562,10.05314902,82.47,82.415,5.67576162]
[1770819667471,10.9195,82.459,82.415,5.67576162]
[1770819667872,10.05314902,82.45,82.415,5.67576162]
[1770819668067,10.05314902,82.45,82.415,6.162e-05]
[1770819668762,10.05314902,82.47,82.415,6.162e-05]
[1770819669271,10.05314902,82.47,82.416,15.89435606]
[1770819669469,10.05314902,82.47,82.416,4.96935606]
[1770819669967,10.05314902,82.49,82.416,4.96935606]
[1770819670873,10.9155,82.489,82.425,4.96900762]
[1770819671675,10.05314902,82.49,82.428,4.90555611]
[1770819672272,10.9173,82.476,82.415,6.162e-05]
[1770819672474,10.05314902,82.47,82.415,6.162e-05]
[1770819673069,10.9186,82.465,82.415,6.162e-05]
[1770819673268,10.05314902,82.47,82.415,6.162e-05]
[1770819673574,10.9198,82.456,82.415,6.162e-05]
[1770819675176,170.44,82.482,82.415,6.162e-05]
[1770819675869,10.9189,82.463,82.415,6.162e-05]
[1770819676266,170.44,82.482,82.415,6.162e-05]
[1770819676468,10.05314902,82.46,82.415,6.162e-05]
[1770819676667,10.9216,82.443,82.415,6.162e-05]
[1770819677477,10.9202,82.453,82.415,6.162e-05]
[1770819677772,10.09598327,82.46,82.415,6.162e-05]
[1770819678373,10.09598327,82.5,82.415,6.162e-05]
[1770819678374,10.09598327,82.48,82.415,6.162e-05]
[1770819679378,10.9188,82.464,82.415,6.162e-05]
[1770819679774,10.09598327,82.48,82.415,6.162e-05]
[1770819680673,10.09598327,82.5,82.415,6.162e-05]
[1770819681081,10.9165,82.481,82.425,4.90481154]
[1770819681477,11.13278764,82.596,82.415,6.162e-05]
[1770819681478,10.09598327,82.55,82.451,4.90481154]
[1770819681683,10.09598327,82.53,82.451,4.90481154]
[1770819681883,10.09598327,82.51,82.451,4.90481154]
[1770819683486,10.09598327,82.54,82.451,4.90481154]
[1770819683781,10.09598327,82.54,82.477,4.77871353]
[1770819684377,10.909,82.538,82.478,15.69551353]
[1770819684583,10.909,82.538,82.479,4.77871353]
[1770819685884,10.9102,82.529,82.479,4.77871353]
[1770819686088,10.09598327,82.54,82.479,4.77871353]
[1770819686283,21.7997,82.607,82.479,4.77871353]
[1770819686475,10.09598327,82.57,82.479,4.77871353]
[1770819687279,10.09598327,82.59,82.504,4.78965036]
[1770819687678,10.09598327,82.59,82.525,4.81647941]
[1770819687679,10.9022,82.589,82.525,4.81647941]
[1770819688282,10.9036,82.579,82.525,4.81647941]
[1770819688488,10.09598327,82.57,82.491,4.81647941]
[1770819689191,10.9077,82.548,82.491,4.81647941]
[1770819689783,10.09598327,82.55,82.491,4.81647941]
[1770819690183,169.4982,82.634,82.491,4.81647941]
[1770819690380,10.09598327,82.57,82.491,4.81647941]
[1770819690781,10.09598327,82.57,82.497,4.88829193]
[1770819691988,10.09598327,82.55,82.486,10.9158]
[1770819692789,10.09598327,82.55,82.479,4.90323625]
[1770819692790,10.9091,82.537,82.479,4.90323625]
[1770819693788,10.09598327,82.55,82.451,4.91201424]
[1770819694289,10.09598327,82.55,82.462,4.91201424]
[1770819694290,10.9106,82.526,82.462,4.91201424]
[1770819694496,10.09598327,82.53,82.462,4.91201424]
[1770819694793,10.09598327,82.51,82.431,4.91201424]
[1770819695289,10.09598327,82.51,82.441,4.91201424]
[1770819696093,169.48,82.534,82.441,4.91201424]
[1770819696094,10.09598327,82.49,82.441,4.91201424]
[1770819696682,10.09598327,82.49,82.422,4.91191889]
[1770819696882,10.09598327,82.47,82.391,4.91191889]
[1770819697283,10.09598327,82.47,82.403,4.91191889]
[1770819699493,10.09598327,82.45,82.381,4.91146836]
[1770819700194,10.9212,82.446,82.386,15.85074279]
[1770819700397,10.9212,82.446,82.387,4.92174279]
[1770819701687,10.9228,82.434,82.369,4.92342677]
[1770819702188,10.09598327,82.43,82.369,4.92342677]
[1770819702795,10.9226,82.436,82.371,4.92342677]
[1770819703195,10.09598327,82.44,82.371,4.92342677]
[1770819703793,10.9248,82.419,82.371,4.92342677]
[1770819704096,10.09598327,82.42,82.371,4.92342677]
[1770819705892,10.9234,82.429,82.371,4.92342677]
[1770819706289,10.9245,82.421,82.371,4.92342677]
[1770819706496,10.09598327,82.44,82.345,4.74990141]
[1770819706497,10.09598327,82.42,82.345,4.74990141]
[1770819706798,10.9256,82.413,82.347,4.74990141]
[1770819707796,10.9256,82.413,82.351,10.9337]
[1770819708297,10.09598327,82.42,82.347,4.74990141]
[1770819708298,10.9266,82.405,82.347,4.74990141]
[1770819708496,10.09598327,82.42,82.349,4.75362103]
[1770819710295,10.09598327,82.4,82.349,4.75362103]
[1770819712099,10.9274,82.399,82.349,4.75362103]
[1770819712504,10.09598327,82.4,82.349,4.75362103]
[1770819712696,21.02328327,82.4,82.349,4.75362103]
[1770819713098,168.8,82.431,82.349,4.75362103]
[1770819713099,10.09598327,82.42,82.349,4.75362103]
[1770819713295,10.9248,82.418,82.367,10.9315]
[1770819713492,10.9248,82.418,82.349,4.75362103]
[1770819713892,10.9238,82.426,82.369,10.9313]
[1770819714311,10.09598327,82.45,82.37,4.76059448]
[1770819715008,10.9233,82.43,82.378,4.76059448]
[1770819715706,10.9233,82.43,82.38,15.71301971]
[1770819716704,10.09598327,82.43,82.361,4.78321971]
[1770819717306,10.9254,82.414,82.361,4.78321971]
[1770819718203,10.09598327,82.41,82.361,4.78321971]
[1770819718407,10.09598327,82.41,82.319,4.77894601]
[1770819719208,10.09598327,82.41,82.345,4.77894601]
[1770819719607,10.09598327,82.39,82.345,4.77894601]
[1770819719911,10.09598327,82.41,82.345,4.77894601]
[1770819720209,10.09598327,82.43,82.355,4.77650179]
[1770819720406,318.32804404,82.501,82.361,4.77650179]
[1770819720609,10.09598327,82.46,82.361,4.77650179]
[1770819720810,10.9226,82.436,82.389,10.9287]
[1770819721013,10.09598327,82.46,82.382,4.77650179]
[1770819721209,10.09598327,82.44,82.361,4.77650179]
[1770819721410,10.09598327,82.42,82.364,4.77650179]
[1770819721606,10.09598327,82.42,82.331,4.76769874]
[1770819721805,10.9266,82.405,82.352,4.76769874]
[1770819722004,10.09598327,82.42,82.352,4.76769874]
[1770819722406,10.9276,82.398,82.352,4.76769874]
[1770819722602,10.09598327,82.42,82.335,4.76769874]
[1770819723007,10.09598327,82.42,82.32,10.09598327]
[1770819723008,10.9282,82.393,82.342,15.70249874]
[1770819723207,10.09598327,82.4,82.342,4.76769874]
[1770819723408,10.09598327,82.4,82.324,4.76769874]
[1770819724416,10.9289,82.388,82.339,10.9352]
[1770819724815,10.9289,82.388,82.34,4.79946476]
[1770819725717,10.9289,82.388,82.341,10.935]
[1770819726111,10.09598327,82.41,82.342,4.78657963]
[1770819726321,10.09598327,82.41,82.343,15.72127963]
[1770819726518,10.09598327,82.39,82.321,4.78657963]
[1770819727720,21.02458327,82.39,82.336,10.9357]
[1770819728320,10.9286,82.39,82.34,10.9352]
[1770819728518,10.09598327,82.41,82.337,4.78727239]
[1770819728519,10.9275,82.398,82.337,4.78727239]
[1770819728926,10.929,82.387,82.337,4.78727239]
[1770819729523,10.9303,82.377,82.337,4.78727239]
[1770819730327,3.47906984,82.369,82.337,7.239e-05]
[1770819731122,10.932,82.364,82.337,7.239e-05]
[1770819731621,10.933,82.357,82.307,10.9395]
[1770819731823,4.09605009,82.356,82.269,10.9138123]
[1770819732125,15.03265009,82.329,82.273,10.944]
[1770819732329,4.09605009,82.328,82.24,10.09598327]
[1770819732624,4.09605009,82.328,82.231,2.1145246]
[1770819732924,4.09605009,82.328,82.24,10.09598327]
[1770819733329,4.09605009,82.369,82.26,10.09598327]
[1770819733629,10.09598327,82.37,82.26,10.09598327]
[1770819733630,4.09605009,82.348,82.261,3.75617004]
[1770819733931,4.09605009,82.348,82.26,10.09598327]
[1770819733932,4.09605009,82.369,82.309,3.75617004]
[1770819734132,4.09605009,82.369,82.291,3.75617004]
[1770819734335,4.09605009,82.369,82.265,21.8901]
[1770819734336,4.09605009,82.389,82.301,3.75617004]
[1770819734530,4.09605009,82.407,82.337,3.75617004]
[1770819735224,21.8383,82.461,82.298,10.9138123]
[1770819735225,4.09605009,82.426,82.341,3.75617004]
[1770819735824,4.09605009,82.416,82.341,3.75617004]
[1770819736024,4.09605009,82.409,82.341,3.75617004]
[1770819736433,10.9278,82.396,82.341,3.75617004]
[1770819736635,10.09598327,82.43,82.319,3.75617004]
[1770819736636,4.09605009,82.389,82.319,3.75617004]
[1770819737023,4.09605009,82.431,82.32,3.75617004]
[1770819737224,4.09605009,82.409,82.321,3.75617004]
[1770819737635,4.09605009,82.389,82.321,3.75617004]
[1770819739639,10.10906132,82.4,82.323,3.75617004]
[1770819740242,14.20511141,82.4,82.323,3.75617004]
[1770819740436,14.20511141,82.4,82.326,3.88262941]
[1770819740641,4.09605009,82.4,82.342,3.88262941]
[1770819740834,3.79936237,82.399,82.317,3.88262941]
[1770819741739,10.9286,82.39,82.33,3.88262941]
[1770819742038,3.79936237,82.399,82.33,3.88262941]
[1770819742244,10.9277,82.396,82.331,3.88262941]
[1770819742437,3.79936237,82.399,82.331,3.88262941]
[1770819742736,3.79936237,82.399,82.333,3.88262941]
[1770819742737,10.9287,82.389,82.333,3.88262941]
[1770819743533,3.79936237,82.417,82.338,3.88262941]
[1770819743734,3.79936237,82.417,82.344,3.88262941]
[1770819743940,3.79936237,82.399,82.328,10.98591055]
[1770819744140,3.79936237,82.399,82.329,10.98591055]
[1770819744345,3.79936237,82.385,82.328,3.88262941]
[1770819745239,10.9289,82.388,82.332,3.88262941]
[1770819745545,10.10906132,82.4,82.332,3.88262941]
[1770819745546,3.79936237,82.399,82.332,3.88262941]
[1770819746041,10.10906132,82.4,82.32,10.10906132]
[1770819746042,3.79936237,82.38,82.321,4.04935663]
[1770819746246,3.79936237,82.38,82.326,10.98591055]
[1770819746548,3.79936237,82.38,82.323,4.04935663]
[1770819746549,3.79936237,82.38,82.327,10.98591055]
[1770819746741,3.79936237,82.38,82.334,10.98591055]
[1770819747050,10.93,82.379,82.335,10.98591055]
[1770819747251,10.93,82.379,82.313,21.86632608]
[1770819747252,3.93405009,82.397,82.337,10.98591055]
[1770819747442,3.93405009,82.397,82.342,10.98591055]
[1770819747748,3.93405009,82.397,82.34,4.04935663]
[1770819747944,3.93405009,82.397,82.347,10.98591055]
[1770819747945,14.86175009,82.397,82.347,10.98591055]
[1770819748249,3.93405009,82.397,82.346,10.98591055]
[1770819748449,3.93405009,82.397,82.34,4.04935663]
[1770819748647,3.93405009,82.397,82.304,156.9]
[1770819748648,510.0274,82.386,82.282,36.28]
[1770819748850,510.0274,82.386,82.181,170.4307]
[1770819748851,20.21812264,82.29,82.254,3.407e-05]
[1770819749048,20.21812264,82.29,82.088,170.6241]
[1770819749049,10.10906132,82.21,82.088,170.6241]
[1770819749242,170.2658,82.262,82.06,82.74052171]
[1770819749243,10.10906132,82.19,82.06,82.74052171]
[1770819749443,10.10906132,82.17,82.06,82.74052171]
[1770819749747,10.10906132,82.14,82.038,82.74052171]
[1770819750056,96.88,82.169,82.005,82.74052171]
[1770819750057,10.10906132,82.12,82.005,82.74052171]
[1770819750348,10.10906132,82.14,82.031,82.74052171]
[1770819750552,170.5399,82.13,82.051,82.74052171]
[1770819750761,170.5241,82.137,82.01,10.10906132]
[1770819751050,10.9657,82.111,82.03,10.10906132]
[1770819751355,166.8,82.146,82.04,10.10906132]
[1770819751663,10.10906132,82.14,82.04,10.10906132]
[1770819751949,10.10906132,82.14,82.02,11.0]
[1770819752148,10.10906132,82.14,82.03,10.10906132]
[1770819752346,166.8,82.146,82.005,96.94]
[1770819752549,166.8,82.146,82.02,10.10906132]
[1770819752550,10.10906132,82.12,82.02,10.10906132]
[1770819752852,10.10906132,82.1,82.004,60.06547879]
[1770819753248,10.9645,82.12,82.004,60.06547879]
[1770819753449,10.10906132,82.12,82.021,60.06547879]
[1770819754252,10.10906132,82.11,82.021,60.06547879]
[1770819754453,21.07086132,82.14,82.021,71.04317879]
[1770819754654,10.10906132,82.12,82.021,71.04317879]
[1770819754856,166.8,82.146,82.035,10.9758]
[1770819755048,10.10906132,82.13,82.036,60.26237415]
[1770819755453,10.10906132,82.11,82.036,60.26237415]
[1770819756045,10.10906132,82.13,82.036,60.26237415]
[1770819756559,170.4376,82.179,82.02,10.10906132]
[1770819756560,170.4028,82.196,82.05,10.10906132]
[1770819756757,170.367,82.213,82.051,60.82714544]
[1770819756957,10.10906132,82.17,82.071,60.82714544]
[1770819757956,10.10906132,82.15,82.073,60.84501399]
[1770819759455,10.10906132,82.15,82.074,10.9706]
[1770819759657,10.10906132,82.18,82.075,60.89425537]
[1770819760366,10.10906132,82.18,82.094,60.89425537]
[1770819761157,10.10906132,82.18,82.099,10.9672]
[1770819761363,21.06296132,82.2,82.1,60.89425537]
[1770819761759,21.06296132,82.2,82.102,10.9668]
[1770819762056,21.06296132,82.2,82.103,60.89044096]
[1770819762464,21.06296132,82.2,82.105,60.89044096]
[1770819762956,21.06296132,82.2,82.108,60.89044096]
[1770819763561,10.10906132,82.21,82.11,70.99950228]
[1770819763758,167.28,82.223,82.11,60.89044096]
[1770819764062,10.10906132,82.2,82.11,60.89044096]
[1770819764252,10.10906132,82.2,82.112,60.89283198]
[1770819764759,10.9557,82.186,82.112,60.89283198]
[1770819765458,10.10906132,82.18,82.098,71.86013198]
[1770819766357,10.10906132,82.18,82.108,60.86556633]
[1770819769363,10.959,82.162,82.108,60.86556633]
[1770819769564,10.10906132,82.16,82.087,60.84489257]
[1770819770063,10.9601,82.153,82.087,60.84489257]
[1770819771275,10.10906132,82.14,82.061,60.84574917]
[1770819771568,10.10906132,82.14,82.061,71.81794917]
[1770819772166,10.9632,82.13,82.061,71.81794917]
[1770819772366,10.10906132,82.14,82.061,71.81794917]
[1770819773164,10.9631,82.131,82.061,71.81794917]
[1770819773559,10.10906132,82.14,82.074,60.85610129]
[1770819773765,10.9622,82.138,82.074,60.85610129]
[1770819774560,10.10906132,82.15,82.074,60.85610129]
[1770819775269,10.961,82.147,82.074,60.85610129]
[1770819775466,10.961,82.147,82.076,60.85610129]
[1770819775768,10.9621,82.138,82.076,60.85610129]
[1770819776257,10.9621,82.138,81.994,170.82]
[1770819776258,10.10906132,82.13,82.041,60.86252226]
[1770819777358,10.9637,82.126,82.062,60.86252226]
[1770819777561,10.10906132,82.13,82.062,60.86252226]
[1770819779373,10.9636,82.127,82.064,60.75029611]
[1770819779669,10.10906132,82.13,82.064,60.75029611]
[1770819779870,10.10906132,82.13,82.045,60.74758563]
[1770819780260,10.10906132,82.13,82.054,60.74758563]
[1770819781967,21.9229,82.143,82.011,60.74888076]
[1770819782169,10.10906132,82.1,82.011,60.74888076]
[1770819782369,10.9684,82.091,82.03,60.74888076]
[1770819782770,10.10906132,82.1,82.03,60.74888076]
[1770819783372,10.10906132,82.08,82.004,60.74888076]
[1770819783575,10.10906132,82.07,82.004,60.74888076]
[1770819783778,10.9715,82.068,82.007,10.9796]
[1770819783973,10.10906132,82.05,81.989,60.70723375]
[1770819784480,10.10906132,82.07,81.989,60.70723375]
[1770819784982,10.10906132,82.07,82.003,66.57770048]
[1770819785285,166.52,82.081,82.003,66.57770048]
[1770819785471,170.5931,82.104,82.003,66.57770048]
[1770819785472,10.10906132,82.08,82.003,66.57770048]
[1770819785673,10.10906132,82.09,82.027,60.75826055]
[1770819786176,10.10906132,82.07,82.003,5.87046673]
[1770819787678,10.9724,82.061,82.003,5.87046673]
[1770819787979,10.10906132,82.08,82.004,50.71656318]
[1770819789277,10.9739,82.05,82.004,50.71656318]
[1770819789479,10.10906132,82.08,82.004,50.71656318]
[1770819789780,10.9746,82.045,82.004,50.35079204]
[1770819789975,10.10906132,82.06,82.004,50.35079204]
[1770819791174,10.10906132,82.06,82.004,31.01289204]
[1770819791575,10.10906132,82.08,82.004,31.01289204]
[1770819791778,10.10906132,82.06,82.003,5.87046673]
[1770819792376,10.9759,82.035,82.003,5.87046673]
[1770819792981,10.977,82.027,82.003,6.673e-05]
[1770819793289,10.10906132,82.04,82.003,6.673e-05]
[1770819793584,10.9777,82.021,82.003,6.673e-05]
[1770819794181,10.9766,82.03,82.003,6.673e-05]
[1770819794682,10.13217517,82.048,82.003,6.673e-05]
[1770819794883,10.13217517,82.049,82.003,6.673e-05]
[1770819795184,10.10906132,82.05,82.003,40.87799165]
[1770819795488,10.9753,82.04,82.003,40.87799165]
[1770819795680,10.10906132,82.06,82.003,40.87799165]
[1770819795876,10.9737,82.051,82.003,40.87799165]
[1770819796985,166.3,82.088,82.003,40.87799165]
[1770819796986,10.9749,82.043,82.003,40.87799165]
[1770819798078,10.9738,82.051,82.003,40.87799165]
[1770819798485,10.10906132,82.06,82.003,40.87799165]
[1770819798679,10.9748,82.043,82.003,40.87799165]
[1770819798879,10.10906132,82.06,82.003,40.87799165]
[1770819799078,10.10906132,82.08,82.003,40.87799165]
[1770819799491,10.9715,82.068,82.021,40.93059497]
[1770819799979,10.10906132,82.08,82.021,40.93059497]
[1770819800381,10.9733,82.054,82.021,40.93059497]
[1770819800780,10.10906132,82.08,82.021,40.93059497]
[1770819800982,10.9698,82.08,82.021,40.93059497]
[1770819801182,10.05782276,82.117,82.021,40.93059497]
[1770819801387,10.18761672,82.09,82.021,40.93059497]
[1770819801777,10.9705,82.075,82.021,40.93059497]
[1770819802186,10.9691,82.086,82.036,10.9756]
[1770819802493,10.9691,82.086,82.037,40.92920143]
[1770819802695,10.18761672,82.09,82.037,40.92920143]
[1770819802990,10.18761672,82.11,82.037,40.92920143]
[1770819803384,10.18761672,82.09,82.037,40.92920143]
[1770819803694,10.18761672,82.11,82.037,40.92920143]
[1770819803992,10.9697,82.082,82.037,40.92920143]